[Event "LEM Niedersachsen-Meister 2025"]
[Site "Verden"]
[Date "2025.01.05"]
[Round "7.13"]
[White "Kieselbach, Jannik"]
[Black "ter Stal, Lars"]
[Result "1/2-1/2"]
[ECO "C88"]
[WhiteElo "1979"]
[BlackElo "1815"]
[Annotator "NA RC"]
[PlyCount "34"]
[EventDate "2024.12.27"]
[EventType "swiss"]
[EventCountry "GER"]
[SourceTitle "playchess.com"]
[Source "ChessBase"]
[SourceQuality "1"]
[TimeControl "40/5400+30:1800+30"]

1. e4 {[%emt 0:00:05]} e5 {[%emt 0:00:48]} 2. Nf3 {[%emt 0:00:38]} Nc6 {[%emt 0:00:07]} 3. Bb5 {[%emt 0:00:17]} a6 {[%emt 0:01:24]} 4. Ba4 {[%emt 0:00:08]} Nf6 {[%emt 0:01:19]} 5. O-O {[%emt 0:00:17]} b5 {[%emt 0:01:13]} 6. Bb3 {[%emt 0:00:08]} Be7 {[%emt 0:00:54]} 7. Re1 {[%emt 0:00:20]} O-O {[%emt 0:00:08]} 8. a4 {[%emt 0:00:22]} Rb8 {[%emt 0:04:18]} 9. axb5 {[%emt 0:00:52]} axb5 {[%emt 0:00:08]} 10. c3 {[%emt 0:02:04]} d6 {[%emt 0:01:04]} 11. h3 {[%emt 0:00:25]} b4 {[%emt 0:08:57]} 12. d4 {[%emt 0:03:25]} bxc3 {[%emt 0:03:06]} 13. bxc3 {[%emt 0:00:30]} exd4 {[%emt 0:03:13]} 14. cxd4 {[%emt 0:00:35]} d5 {[%emt 0:09:18]} 15. e5 {[%emt 0:08:07]} Ne4 {[%emt 0:01:03]} 16. Bc2 {[%emt 0:05:47]} Bf5 {[%emt 0:01:36]} 17. Be3 {[%emt 0:09:40]} Nb4 {[%emt 0:10:33]} 1/2-1/2

[Event "LEM Niedersachsen-Meister 2025"]
[Site "Verden"]
[Date "2025.01.05"]
[Round "7.14"]
[White "Schiller, Jan-Hendrik"]
[Black "Celik, Abdullah"]
[Result "1/2-1/2"]
[ECO "E62"]
[WhiteElo "1952"]
[BlackElo "2032"]
[Annotator "RC"]
[PlyCount "98"]
[EventDate "2024.12.27"]
[EventType "swiss"]
[EventCountry "GER"]
[SourceTitle "playchess.com"]
[Source "ChessBase"]
[SourceQuality "1"]
[TimeControl "40/5400+30:1800+30"]

1. d4 {[%emt 0:00:19]} Nf6 {[%emt 0:03:05]} 2. Nf3 {[%emt 0:01:47]} g6 {[%emt 0:00:03]} 3. c4 {[%emt 0:00:46]} Bg7 {[%emt 0:00:03]} 4. g3 {[%emt 0:00:58]} O-O {[%emt 0:00:04]} 5. Bg2 {[%emt 0:00:28]} d6 {[%emt 0:00:03]} 6. O-O {[%emt 0:00:38]} c6 {[%emt 0:00:03]} 7. Nc3 {[%emt 0:01:44]} Bf5 {[%emt 0:00:04]} 8. Nh4 {[%emt 0:02:45]} Be6 {[%emt 0:00:04]} 9. Qd3 {[%emt 0:04:15]} d5 {[%emt 0:02:38]} 10. b3 {[%emt 0:06:13]} Qa5 {[%emt 0:06:05]} 11. cxd5 {[%emt 0:06:27]} cxd5 {[%emt 0:00:10]} 12. Bb2 {[%emt 0:00:56]} Nc6 {[%emt 0:02:24]} 13. e3 {[%emt 0:04:20]} Rfc8 {[%emt 0:12:37]} 14. Rfc1 {[%emt 0:02:02]} Qd8 {[%emt 0:04:16]} 15. Qd2 {[%emt 0:13:41]} Qd7 {[%emt 0:03:10]} 16. Nf3 {[%emt 0:02:22]} Bf5 {[%emt 0:09:55]} 17. Ne5 {[%emt 0:02:41]} Qe6 {[%emt 0:06:00]} 18. Nd3 {[%emt 0:02:56]} Qd6 {[%emt 0:09:20]} 19. Nf4 {[%emt 0:04:14]} e6 {[%emt 0:01:58]} 20. Nd3 {[%emt 0:04:40]} g5 {[%emt 0:06:15]} 21. Ne5 {[%emt 0:05:13]} g4 {[%emt 0:01:38]} 22. Nxc6 {[%emt 0:03:50]} Rxc6 {[%emt 0:00:09]} 23. Bf1 {[%emt 0:02:51]} a6 {[%emt 0:01:24]} 24. Bd3 {[%emt 0:01:38]} Bxd3 {[%emt 0:02:19]} 25. Qxd3 {[%emt 0:00:11]} Rac8 {[%emt 0:00:10]} 26. Ne2 {[%emt 0:04:34]} Ne4 {[%emt 0:02:27]} 27. Rxc6 {[%emt 0:04:28]} Rxc6 {[%emt 0:00:04]} 28. Kg2 {[%emt 0:01:45]} Qc7 {[%emt 0:03:20]} 29. Rc1 {[%emt 0:01:54]} Rxc1 {[%emt 0:00:35]} 30. Bxc1 {[%emt 0:00:44]} Bf8 {[%emt 0:04:11]} 31. Bd2 {[%emt 0:01:24]} Ba3 {[%emt 0:06:28]} 32. Be1 {[%emt 0:03:00]} b5 {[%emt 0:04:12]} 33. Nc3 {[%emt 0:04:42]} Ng5 {[%emt 0:02:23]} 34. Ne2 {[%emt 0:01:25]} Nf3 {[%emt 0:02:09]} 35. Bd2 {[%emt 0:00:27]} b4 {[%emt 0:01:43]} 36. h4 {[%emt 0:01:32]} a5 {[%emt 0:00:26]} 37. Ng1 {[%emt 0:01:01]} Nxg1 {[%emt 0:03:56]} 38. Kxg1 {[%emt 0:00:14]} Bc1 {[%emt 0:00:18]} 39. Be1 {[%emt 0:01:16]} Bb2 {[%emt 0:01:12]} 40. Qe2 {[%emt 0:00:52]} Qc1 {[%emt 0:00:38]} 41. Qxg4+ {[%emt 0:31:20]} Kf8 {[%emt 0:30:04]} 42. Qe2 {[%emt 0:00:00]} Bc3 {[%emt 0:00:00]} 43. Kf1 {[%emt 0:00:00]} Qb1 {[%emt 0:00:00]} 44. f3 {[%emt 0:00:00]} Kg7 {[%emt 0:00:00]} 45. g4 {[%emt 0:00:00]} Bxe1 {[%emt 0:00:00]} 46. Qxe1 {[%emt 0:00:00]} Qxa2 {[%emt 0:00:00]} 47. Qg3 {[%emt 0:00:00]} Qb1+ {[%emt 0:00:00]} 48. Kg2 {[%emt 0:00:00]} Qc2+ {[%emt 0:00:00]} 49. Kh3 {[%emt 0:00:00]} Qc8 {[%emt 0:00:00]} 1/2-1/2

[Event "LEM Niedersachsen-Meister 2025"]
[Site "Verden"]
[Date "2025.01.05"]
[Round "7.15"]
[White "Wilmink, Anna"]
[Black "de Vries, Carsten"]
[Result "1-0"]
[ECO "B22"]
[WhiteElo "2033"]
[BlackElo "1898"]
[Annotator "NA RC"]
[PlyCount "47"]
[EventDate "2024.12.27"]
[EventType "swiss"]
[EventCountry "GER"]
[SourceTitle "playchess.com"]
[Source "ChessBase"]
[SourceQuality "1"]
[TimeControl "40/5400+30:1800+30"]

1. e4 {[%emt 0:00:02]} c5 {[%emt 0:00:04]} 2. d3 {[%emt 0:01:18]} Nc6 {[%emt 0:00:22]} 3. f4 {[%emt 0:00:39]} d6 {[%emt 0:00:15]} 4. c3 {[%emt 0:00:55]} Nf6 {[%emt 0:00:37]} 5. Nf3 {[%emt 0:01:06]} g6 {[%emt 0:00:47]} 6. Be2 {[%emt 0:01:04]} Bg7 {[%emt 0:00:09]} 7. O-O {[%emt 0:00:54]} O-O {[%emt 0:00:03]} 8. Na3 {[%emt 0:01:54] B22: Sicilian: 2 c3.} Rb8 {[%emt 0:01:52]} 9. Nc2 {[%emt 0:02:05]} Qc7 {[%emt 0:02:12]} 10. Qe1 {[%emt 0:03:47]} Bg4 {[%emt 0:03:11]} 11. Ne3 {[%emt 0:02:56]} Bxf3 {[%emt 0:00:43]} 12. Rxf3 {[%emt 0:02:59]} b5 {[%emt 0:06:21]} 13. Rh3 {[%emt 0:05:26]} h5 {[%emt 0:05:15]} 14. f5 {[%emt 0:04:02]} Ne5 {[%emt 0:01:55]} 15. Bd2 {[%emt 0:03:30]} e6 {[%emt 0:08:54]} 16. fxg6 {[%emt 0:14:02]} fxg6 {[%emt 0:00:11]} 17. Qh4 {[%emt 0:07:48]} Kf7 {[%emt 0:03:40]} 18. Rf1 {[%emt 0:05:17]} Ke8 {[%emt 0:00:49]} 19. d4 {[%emt 0:20:19]} cxd4 {[%emt 0:01:57]} 20. cxd4 {[%emt 0:00:10]} Nc4 {[%emt 0:02:02]} 21. Nxc4 {[%emt 0:01:10]} bxc4 {[%emt 0:00:02]} 22. Bc3 $18 {[%emt 0:02:55]} Kd7 {[%emt 0:02:30]} 23. Rhf3 {[%emt 0:02:25]} Ng8 {[%emt 0:02:14]} 24. Rf7+ {[%emt 0:00:25]} 1-0